[Event "XX Gran Hotel Bali-B 2023"]
[Site "Benidorm"]
[Date "2023.12.03"]
[Round "3.6"]
[White "Perez Tomas, Juan Manuel"]
[Black "Tudela Gonzalez, Victor"]
[Result "1/2-1/2"]
[ECO "B51"]
[WhiteElo "1871"]
[BlackElo "1957"]
[Annotator "NA RC"]
[PlyCount "72"]
[EventDate "2023.12.02"]
[EventType "swiss"]
[EventCountry "ESP"]
[SourceTitle "playchess.com"]
[Source "ChessBase"]
[SourceQuality "1"]
[TimeControl "5400+30"]

1. e4 {[%emt 0:01:35]} c5 {[%emt 0:00:36]} 2. Nf3 {[%emt 0:00:25]} d6 {[%emt 0:00:57]} 3. Bb5+ {[%emt 0:00:27]} Nd7 {[%emt 0:01:30]} 4. c3 {[%emt 0:00:49]} Ngf6 {[%emt 0:03:37]} 5. Bd3 {[%emt 0:01:33]} g6 {[%emt 0:02:54]} 6. Bc2 {[%emt 0:01:41]} Bg7 {[%emt 0:03:41]} 7. a4 {[%emt 0:01:29]} e5 {[%emt 0:06:49]} 8. O-O {[%emt 0:10:01]} Nb8 {[%emt 0:05:29]} 9. d4 {[%emt 0:03:35]} cxd4 {[%emt 0:03:37]} 10. cxd4 {[%emt 0:00:26]} Nc6 {[%emt 0:04:09]} 11. dxe5 {[%emt 0:05:07]} dxe5 {[%emt 0:02:23]} 12. Qxd8+ {[%emt 0:01:05]} Kxd8 {[%emt 0:00:29]} 13. Nc3 {[%emt 0:00:17]} Bg4 {[%emt 0:10:21]} 14. Ng5 {[%emt 0:08:55]} Nd4 {[%emt 0:07:26]} 15. Bd3 {[%emt 0:00:33]} Ke7 {[%emt 0:01:27]} 16. Bc4 {[%emt 0:03:25]} Ne6 {[%emt 0:13:28]} 17. h3 {[%emt 0:04:28]} Nxg5 {[%emt 0:00:43]} 18. Bxg5 {[%emt 0:00:02]} Be6 {[%emt 0:00:43]} 19. Nd5+ {[%emt 0:00:09]} Bxd5 {[%emt 0:00:43]} 20. exd5 {[%emt 0:00:57]} Kd6 {[%emt 0:01:13]} 21. f4 {[%emt 0:00:54]} Ne4 {[%emt 0:11:42]} 22. fxe5+ {[%emt 0:02:34]} Kc5 {[%emt 0:03:37]} 23. Rf4 {[%emt 0:26:06]} Nxg5 {[%emt 0:00:54]} 24. b4+ {[%emt 0:00:09]} Kb6 {[%emt 0:01:24]} 25. a5+ {[%emt 0:00:15]} Kc7 {[%emt 0:00:17]} 26. Re1 {[%emt 0:00:58]} Rae8 {[%emt 0:01:57]} 27. d6+ {[%emt 0:09:14]} Kb8 {[%emt 0:00:19]} 28. h4 {[%emt 0:05:19]} Bxe5 {[%emt 0:01:24]} 29. d7 {[%emt 0:00:33]} Re7 {[%emt 0:00:41]} 30. hxg5 {[%emt 0:00:40]} Bxf4 {[%emt 0:02:24]} 31. Rxe7 {[%emt 0:00:30]} Rd8 {[%emt 0:00:39]} 32. Rxf7 {[%emt 0:03:30]} Bxg5 {[%emt 0:00:05]} 33. Rxh7 {[%emt 0:00:48]} Bd2 {[%emt 0:00:47]} 34. a6 {[%emt 0:02:00]} Bxb4 {[%emt 0:00:41]} 35. axb7 {[%emt 0:00:35]} Kxb7 {[%emt 0:00:08]} 36. Be6 {[%emt 0:00:25]} g5 {[%emt 0:01:19]} 1/2-1/2

[Event "XX Gran Hotel Bali-B 2023"]
[Site "Benidorm"]
[Date "2023.12.03"]
[Round "3.7"]
[White "Navarro Rico, Lluis"]
[Black "Kao, Jamison Edrich"]
[Result "1/2-1/2"]
[ECO "A09"]
[WhiteElo "1937"]
[BlackElo "1701"]
[Annotator "NA RC"]
[PlyCount "245"]
[EventDate "2023.12.02"]
[EventType "swiss"]
[EventCountry "ESP"]
[SourceTitle "playchess.com"]
[Source "ChessBase"]
[SourceQuality "1"]
[TimeControl "5400+30"]

1. Nf3 {[%emt 0:03:32]} d5 {[%emt 0:00:06]} 2. g3 {[%emt 0:00:29]} Nf6 {[%emt 0:01:06]} 3. Bg2 {[%emt 0:00:05]} g6 {[%emt 0:00:07]} 4. c4 {[%emt 1:28:24]} d4 5. b4 {[%emt 0:00:00]} Bg7 {[%emt 0:01:13]} 6. Bb2 {[%emt 0:00:00]} c5 {[%emt 0:00:03]} 7. d3 {[%emt 0:00:00]} O-O {[%emt 0:00:11]} 8. Nbd2 {[%emt 0:00:00]} Re8 {[%emt 0:00:39]} 9. O-O {[%emt 0:00:00]} e5 {[%emt 0:00:54]} 10. bxc5 {[%emt 0:00:00]} Qc7 {[%emt 0:07:42]} 11. Ba3 {[%emt 0:00:00]} h6 {[%emt 0:03:33]} 12. Rb1 {[%emt 0:00:00]} Nc6 {[%emt 0:02:12]} 13. Qb3 {[%emt 0:00:00]} Re7 {[%emt 0:03:32]} 14. Rb2 {[%emt 0:00:00]} Bf5 {[%emt 0:13:31]} 15. Nh4 {[%emt 0:00:00]} Bg4 {[%emt 0:06:57]} 16. Ne4 {[%emt 0:00:00]} g5 {[%emt 0:01:55]} 17. Nxf6+ {[%emt 0:00:00]} Bxf6 {[%emt 0:00:01]} 18. Nf3 {[%emt 0:00:00]} Bg7 {[%emt 0:03:11]} 19. Rfb1 {[%emt 0:00:00]} Qc8 {[%emt 0:01:28]} 20. Nd2 {[%emt 0:00:00]} f5 {[%emt 0:02:05]} 21. Bd5+ {[%emt 0:00:00]} Kh8 {[%emt 0:00:21]} 22. f3 {[%emt 0:00:00]} Bh5 {[%emt 0:00:56]} 23. Qa4 {[%emt 0:00:00]} g4 {[%emt 0:03:12]} 24. Rxb7 {[%emt 0:00:00]} Rxb7 {[%emt 0:00:07]} 25. Rxb7 {[%emt 0:00:00]} Qxb7 {[%emt 0:00:04]} 26. Bxc6 {[%emt 0:00:00]} Qc8 {[%emt 0:00:03]} 27. Bxa8 {[%emt 0:00:00]} Qxa8 {[%emt 0:00:04]} 28. fxg4 {[%emt 0:00:00]} Be8 {[%emt 0:03:26]} 29. Qa6 {[%emt 0:00:00]} Bc6 {[%emt 0:02:22]} 30. gxf5 {[%emt 0:00:00]} Bh1 {[%emt 0:00:59]} 31. c6 {[%emt 0:00:00]} Bxc6 {[%emt 0:00:08]} 32. f6 {[%emt 0:00:00]} Bxf6 {[%emt 0:00:35]} 33. Ne4 {[%emt 0:00:00]} Bg7 {[%emt 0:00:34]} 34. Nd6 {[%emt 0:00:00]} e4 {[%emt 0:37:28]} 35. Qc8+ {[%emt 0:00:00]} Qxc8 {[%emt 0:00:04]} 36. Nxc8 {[%emt 0:00:00]} a6 {[%emt 0:02:12]} 37. Ne7 {[%emt 0:00:00]} Ba4 {[%emt 0:00:21]} 38. dxe4 {[%emt 0:00:00]} Bc2 {[%emt 0:02:16]} 39. c5 {[%emt 0:00:00]} Bxe4 {[%emt 0:00:33]} 40. Bb2 {[%emt 0:02:48]} Bf6 {[%emt 0:00:54]} 41. Nc8 {[%emt 0:00:23]} Kg8 {[%emt 0:00:10]} 42. Bc1 {[%emt 0:04:59]} d3 {[%emt 0:00:31]} 43. Bxh6 {[%emt 0:02:27]} Bd4+ {[%emt 0:00:38]} 44. Kf1 {[%emt 0:00:14]} Bxc5 {[%emt 0:00:15]} 45. Bg5 {[%emt 0:03:05]} Bf5 {[%emt 0:01:19]} 46. exd3 {[%emt 0:00:19]} Bxc8 {[%emt 0:00:12]} 47. Bc1 {[%emt 0:01:33]} Bh3+ {[%emt 0:00:20]} 48. Ke2 {[%emt 0:00:38]} Bg4+ {[%emt 0:00:04]} 49. Kd2 {[%emt 0:00:21]} Bg1 {[%emt 0:00:12]} 50. Ke1 {[%emt 0:01:03]} Bf5 {[%emt 0:01:03]} 51. Ke2 {[%emt 0:01:01]} Be6 {[%emt 0:00:05]} 52. a4 {[%emt 0:00:52]} a5 {[%emt 0:00:48]} 53. Be3 {[%emt 0:01:14]} Bg4+ {[%emt 0:01:14]} 54. Kd2 {[%emt 0:00:07]} Bxh2 {[%emt 0:00:10]} 55. Bf4 {[%emt 0:01:02]} Bg1 {[%emt 0:00:10]} 56. Be3 {[%emt 0:00:04]} Bh2 {[%emt 0:00:18]} 57. Bf4 {[%emt 0:00:10]} Kf7 {[%emt 0:00:04]} 58. Bc7 {[%emt 0:00:17]} Bd7 {[%emt 0:00:02]} 59. Ke3 {[%emt 0:00:29]} Bg1+ {[%emt 0:00:20]} 60. Kf4 {[%emt 0:00:13]} Bc5 {[%emt 0:00:26]} 61. Bxa5 {[%emt 0:00:11]} Bd6+ {[%emt 0:00:04]} 62. Kf3 {[%emt 0:00:21]} Bc6+ {[%emt 0:00:01]} 63. Kg4 {[%emt 0:00:16]} Kg6 {[%emt 0:00:04]} 64. Bd2 {[%emt 0:00:37]} Bxa4 {[%emt 0:00:02]} 65. Kf3 {[%emt 0:00:17]} Bd1+ {[%emt 0:00:07]} 66. Kf2 {[%emt 0:00:22]} Bc5+ {[%emt 0:00:02]} 67. Be3 {[%emt 0:00:04]} Bb4 {[%emt 0:00:08]} 68. Bf4 {[%emt 0:00:26]} Kf5 {[%emt 0:00:06]} 69. Ke3 {[%emt 0:00:06]} Bc5+ {[%emt 0:00:25]} 70. d4 {[%emt 0:00:05]} Ba3 {[%emt 0:00:05]} 71. d5 {[%emt 0:00:23]} Ba4 {[%emt 0:00:24]} 72. Kd4 {[%emt 0:00:17]} Bd7 {[%emt 0:00:09]} 73. Bc7 {[%emt 0:00:17]} Kf6 {[%emt 0:00:21]} 74. Be5+ {[%emt 0:00:15]} Ke7 {[%emt 0:00:05]} 75. Ke4 {[%emt 0:00:03]} Bc1 {[%emt 0:00:16]} 76. Bf4 {[%emt 0:00:09]} Ba3 {[%emt 0:00:07]} 77. Bg5+ {[%emt 0:00:12]} Kd6 {[%emt 0:00:29]} 78. Bf4+ {[%emt 0:00:18]} Kc5 {[%emt 0:00:07]} 79. Bh6 {[%emt 0:00:08]} Bb2 {[%emt 0:00:22]} 80. Be3+ {[%emt 0:00:16]} Kc4 {[%emt 0:00:04]} 81. d6 {[%emt 0:00:18]} Bc6+ {[%emt 0:00:14]} 82. Kf5 {[%emt 0:00:22]} Kd5 {[%emt 0:00:04]} 83. Bf4 {[%emt 0:00:57]} Bd7+ {[%emt 0:00:03]} 84. Kg5 {[%emt 0:00:15]} Ke6 {[%emt 0:00:36]} 85. Kh4 {[%emt 0:00:08]} Kf5 {[%emt 0:00:17]} 86. Bg5 {[%emt 0:00:26]} Ke6 {[%emt 0:01:36]} 87. Be7 {[%emt 0:00:37]} Bc3 {[%emt 0:00:37]} 88. Kh3 {[%emt 0:00:15]} Kf5 {[%emt 0:00:11]} 89. Kh4 {[%emt 0:00:06]} Be1 {[%emt 0:00:14]} 90. Bg5 {[%emt 0:00:15]} Ke4 {[%emt 0:00:13]} 91. Bf6 {[%emt 0:00:15]} Bf2 {[%emt 0:00:14]} 92. Bg5 {[%emt 0:00:15]} Bc5 {[%emt 0:00:21]} 93. Bf4 {[%emt 0:00:44]} Bd4 {[%emt 0:00:22]} 94. Kg5 {[%emt 0:00:34]} Kd5 {[%emt 0:00:46]} 95. Kh4 {[%emt 0:01:27]} Ke6 {[%emt 0:00:48]} 96. Kg4 {[%emt 0:01:40]} Kf6+ {[%emt 0:00:15]} 97. Kh4 {[%emt 0:00:13]} Kf5 {[%emt 0:00:27]} 98. Bg5 {[%emt 0:00:06]} Bc5 {[%emt 0:00:25]} 99. Bf4 {[%emt 0:00:19]} Bd4 {[%emt 0:00:03]} 100. Bg5 {[%emt 0:00:07]} Be5 {[%emt 0:00:04]} 101. Be7 {[%emt 0:00:39]} Kg6 {[%emt 0:00:11]} 102. g4 {[%emt 0:00:12]} Bh2 {[%emt 0:00:47]} 103. Kh3 {[%emt 0:00:18]} Bf4 {[%emt 0:00:04]} 104. Kh4 {[%emt 0:00:17]} Bb5 {[%emt 0:00:21]} 105. Kh3 {[%emt 0:00:22]} Bc6 {[%emt 0:00:14]} 106. Kh4 {[%emt 0:00:05]} Bd2 {[%emt 0:00:54]} 107. Kg3 {[%emt 0:00:11]} Bb4 {[%emt 0:00:04]} 108. Kf4 {[%emt 0:00:14]} Kf7 {[%emt 0:00:08]} 109. g5 {[%emt 0:00:22]} Ke6 {[%emt 0:00:20]} 110. Ke3 {[%emt 0:00:20]} Ba3 {[%emt 0:00:08]} 111. Kd3 {[%emt 0:00:06]} Bc1 {[%emt 0:00:15]} 112. Kc2 {[%emt 0:00:04]} Bf4 {[%emt 0:00:03]} 113. Bf6 {[%emt 0:00:16]} Kxd6 {[%emt 0:00:16]} 114. Kb2 {[%emt 0:00:01]} Be4 {[%emt 0:00:15]} 115. Kc3 {[%emt 0:00:16]} Kd5 {[%emt 0:00:07]} 116. Kb3 {[%emt 0:00:07]} Bd2 {[%emt 0:00:08]} 117. Kb2 {[%emt 0:00:22]} Kc4 {[%emt 0:00:08]} 118. Ka2 {[%emt 0:00:35]} Bc1 {[%emt 0:00:12]} 119. Ka1 {[%emt 0:00:07]} Kb3 {[%emt 0:00:05]} 120. Bg7 {[%emt 0:00:05]} Bxg5 {[%emt 0:00:10]} 121. Be5 {[%emt 0:00:09]} Bd2 {[%emt 0:00:12]} 122. Bf6 {[%emt 0:00:08]} Bf4 {[%emt 0:00:10]} 123. Bb2 {[%emt 0:00:08]} 1/2-1/2

[Event "XX Gran Hotel Bali-B 2023"]
[Site "Benidorm"]
[Date "2023.12.03"]
[Round "3.8"]
[White "Viciano Barrachina, Aitor"]
[Black "Medina Romero, Jose"]
[Result "1/2-1/2"]
[ECO "E61"]
[WhiteElo "1878"]
[BlackElo "1963"]
[Annotator "NA RC"]
[PlyCount "85"]
[EventDate "2023.12.02"]
[EventType "swiss"]
[EventCountry "ESP"]
[SourceTitle "playchess.com"]
[Source "ChessBase"]
[SourceQuality "1"]
[TimeControl "5400+30"]

1. d4 {[%emt 0:00:10]} g6 {[%emt 0:00:22]} 2. Nf3 {[%emt 0:01:37]} Bg7 {[%emt 0:00:08]} 3. Bf4 {[%emt 0:04:42]} Nf6 {[%emt 0:00:34]} 4. e3 {[%emt 0:00:46]} O-O {[%emt 0:00:09]} 5. Be2 {[%emt 0:00:46]} d6 {[%emt 0:00:36]} 6. h3 {[%emt 0:00:43]} Nc6 {[%emt 0:00:13]} 7. Bh2 {[%emt 0:01:20]} Nd7 {[%emt 0:00:06]} 8. c4 {[%emt 0:11:33]} e5 {[%emt 1:32:22]} 9. Nc3 {[%emt 0:01:19]} Re8 {[%emt 0:00:00]} 10. O-O {[%emt 0:02:05]} e4 {[%emt 0:00:00]} 11. Nd2 {[%emt 0:01:01]} f5 {[%emt 0:00:00]} 12. b3 {[%emt 0:05:12]} Nf6 {[%emt 0:00:00]} 13. Rc1 {[%emt 0:00:18]} Bd7 {[%emt 0:00:00]} 14. Re1 {[%emt 0:01:19]} g5 {[%emt 0:00:00]} 15. a3 {[%emt 0:15:08]} a6 {[%emt 0:00:00]} 16. Qc2 {[%emt 0:01:31]} Ne7 {[%emt 0:00:00]} 17. b4 {[%emt 0:05:09]} Ng6 {[%emt 0:00:00]} 18. a4 {[%emt 0:01:34]} h5 {[%emt 0:00:00]} 19. Nd5 {[%emt 0:04:11]} g4 {[%emt 0:00:00]} 20. Nf4 {[%emt 0:00:23]} Nxf4 {[%emt 0:00:00]} 21. Bxf4 {[%emt 0:00:29]} Kh7 {[%emt 0:00:00]} 22. h4 {[%emt 0:03:14]} Bh6 {[%emt 0:00:00]} 23. Bxh6 {[%emt 0:00:45]} Kxh6 {[%emt 0:00:00]} 24. g3 {[%emt 0:00:46]} Ng8 {[%emt 0:00:00]} 25. b5 {[%emt 0:01:01]} Ne7 {[%emt 0:00:00]} 26. Rb1 {[%emt 0:01:26]} Ng6 {[%emt 0:00:00]} 27. Kg2 {[%emt 0:01:13]} b6 {[%emt 0:00:00]} 28. Qb2 {[%emt 0:04:01]} a5 {[%emt 0:00:00]} 29. d5 {[%emt 0:02:19]} Qe7 {[%emt 0:00:00]} 30. Qc3 {[%emt 0:03:16]} Rf8 {[%emt 0:00:00]} 31. Bd1 {[%emt 0:02:37]} Rae8 {[%emt 0:00:00]} 32. Bc2 {[%emt 0:00:11]} Ne5 {[%emt 0:00:00]} 33. Rh1 {[%emt 0:01:36]} Nf3 {[%emt 0:00:00]} 34. Bd1 {[%emt 0:01:16]} Rg8 {[%emt 0:00:00]} 35. Nb3 {[%emt 0:06:30]} Qf7 {[%emt 0:00:00]} 36. Nc1 {[%emt 0:00:36]} Qg6 {[%emt 0:00:00]} 37. Ne2 {[%emt 0:00:23]} Ne5 {[%emt 0:00:00]} 38. Bc2 {[%emt 0:03:45]} Ref8 {[%emt 0:00:00]} 39. Nf4 {[%emt 0:00:11]} Qf7 {[%emt 0:00:00]} 40. Rhe1 {[%emt 0:01:27]} Ng6 {[%emt 0:00:00]} 41. Nxg6 {[%emt 0:00:43]} Qxg6 {[%emt 0:00:00]} 42. Re2 {[%emt 0:00:26]} Re8 {[%emt 0:00:00]} 43. Rbe1 {[%emt 0:13:02]} 1/2-1/2

[Event "XX Gran Hotel Bali-B 2023"]
[Site "Benidorm"]
[Date "2023.12.03"]
[Round "3.9"]
[White "Navia Martin, Sergio"]
[Black "Blanco Garcia Bajo, David"]
[Result "1/2-1/2"]
[ECO "E11"]
[WhiteElo "1962"]
[BlackElo "1812"]
[Annotator "NA RC"]
[PlyCount "98"]
[EventDate "2023.12.02"]
[EventType "swiss"]
[EventCountry "ESP"]
[SourceTitle "playchess.com"]
[Source "ChessBase"]
[SourceQuality "1"]
[TimeControl "5400+30"]

1. d4 {[%emt 0:00:03]} e6 {[%emt 0:00:07]} 2. c4 {[%emt 0:00:11]} Nf6 {[%emt 0:00:06]} 3. g3 {[%emt 0:00:51]} d5 {[%emt 0:00:13]} 4. Bg2 {[%emt 0:00:29]} Bb4+ {[%emt 0:00:39]} 5. Bd2 {[%emt 0:01:09]} Be7 {[%emt 0:00:12]} 6. Nf3 {[%emt 0:01:06]} c6 {[%emt 0:01:42]} 7. Qc2 {[%emt 0:02:15]} Ne4 {[%emt 0:01:10]} 8. Bf4 {[%emt 0:08:28]} Nd7 {[%emt 0:04:19]} 9. O-O {[%emt 0:02:08]} g5 {[%emt 0:04:08]} 10. Be3 {[%emt 0:02:50]} f5 {[%emt 0:01:36]} 11. Nfd2 {[%emt 0:04:59]} h5 {[%emt 0:09:23]} 12. Nxe4 {[%emt 0:04:37]} dxe4 {[%emt 0:01:03]} 13. f3 {[%emt 0:02:00]} exf3 {[%emt 0:00:37]} 14. exf3 {[%emt 0:01:07]} Nb6 {[%emt 0:04:04]} 15. Nd2 {[%emt 0:05:01]} h4 {[%emt 0:11:28]} 16. Rfe1 {[%emt 0:24:07]} f4 {[%emt 0:13:56]} 17. Qg6+ {[%emt 0:07:38]} Kf8 {[%emt 0:01:35]} 18. gxf4 {[%emt 0:04:01]} gxf4 {[%emt 0:00:44]} 19. Bxf4 {[%emt 0:01:53]} Qxd4+ {[%emt 0:00:27]} 20. Be3 {[%emt 0:00:18]} Qf6 {[%emt 0:00:50]} 21. Qxf6+ {[%emt 0:02:08]} Bxf6 {[%emt 0:00:02]} 22. Bh3 {[%emt 0:05:02]} Bxb2 {[%emt 0:02:34]} 23. Rab1 {[%emt 0:00:21]} Bc3 {[%emt 0:00:37]} 24. Rec1 {[%emt 0:02:34]} Bg7 {[%emt 0:01:05]} 25. Ne4 {[%emt 0:01:36]} Na4 {[%emt 0:06:11]} 26. Rb4 {[%emt 0:02:59]} Nb2 {[%emt 0:00:48]} 27. Rb3 {[%emt 0:02:19]} b6 {[%emt 0:01:20]} 28. c5 {[%emt 0:04:34]} b5 {[%emt 0:03:24]} 29. Nd6 {[%emt 0:00:29]} Bd7 {[%emt 0:05:01]} 30. Kf2 {[%emt 0:02:34]} a5 {[%emt 0:06:16]} 31. Rc2 {[%emt 0:00:59]} Nd1+ {[%emt 0:01:40]} 32. Ke2 {[%emt 0:00:12]} Nxe3 {[%emt 0:00:14]} 33. Rxe3 {[%emt 0:00:11]} Rh6 {[%emt 0:04:16]} 34. Kd3 {[%emt 0:00:50]} Rf6 {[%emt 0:01:01]} 35. Rce2 {[%emt 0:00:56]} Bh6 {[%emt 0:00:15]} 36. Ne4 {[%emt 0:03:33]} Rf7 {[%emt 0:03:34]} 37. Nd6 {[%emt 0:01:13]} Bxe3 {[%emt 0:00:43]} 38. Nxf7 {[%emt 0:00:07]} Bxc5 {[%emt 0:01:14]} 39. Ng5 {[%emt 0:00:22]} Rd8 {[%emt 0:00:40]} 40. Kc2 {[%emt 0:00:11]} Bd6 {[%emt 0:01:42]} 41. Bxe6 {[%emt 0:00:33]} Re8 {[%emt 0:01:42]} 42. Kd3 {[%emt 0:00:47]} Bxe6 {[%emt 0:01:45]} 43. Nxe6+ {[%emt 0:00:17]} Kg8 {[%emt 0:01:32]} 44. h3 {[%emt 0:00:12]} Re7 {[%emt 0:00:47]} 45. Re4 {[%emt 0:00:30]} c5 {[%emt 0:01:54]} 46. Rg4+ {[%emt 0:02:50]} Kf7 {[%emt 0:04:54]} 47. Ng5+ {[%emt 0:00:30]} Ke8 {[%emt 0:00:30]} 48. Rxh4 {[%emt 0:00:30]} c4+ {[%emt 0:00:30]} 49. Kd4 {[%emt 0:00:30]} Be5+ {[%emt 0:00:30]} 1/2-1/2

[Event "XX Gran Hotel Bali-B 2023"]
[Site "Benidorm"]
[Date "2023.12.03"]
[Round "3.10"]
[White "Gimeno Simo, Sergio"]
[Black "Westerweele, Henrik"]
[Result "1/2-1/2"]
[ECO "C02"]
[WhiteElo "1845"]
[BlackElo "1965"]
[Annotator "NA RC"]
[PlyCount "67"]
[EventDate "2023.12.02"]
[EventType "swiss"]
[EventCountry "ESP"]
[SourceTitle "playchess.com"]
[Source "ChessBase"]
[SourceQuality "1"]
[TimeControl "5400+30"]

1. e4 {[%emt 0:00:05]} e6 {[%emt 0:00:06]} 2. d4 {[%emt 0:00:34]} d5 {[%emt 0:00:11]} 3. e5 {[%emt 0:00:08]} c5 {[%emt 0:00:41]} 4. c3 {[%emt 0:00:06]} Nc6 {[%emt 0:00:33]} 5. Nf3 {[%emt 0:00:39]} Nh6 {[%emt 0:00:28]} 6. Be2 {[%emt 0:07:20]} cxd4 {[%emt 0:00:35]} 7. cxd4 {[%emt 0:00:06]} Qb6 {[%emt 0:00:31]} 8. Nc3 {[%emt 0:12:08]} Nf5 {[%emt 0:01:18]} 9. Bb5 {[%emt 0:03:31]} Bd7 {[%emt 0:04:02]} 10. Bxc6 {[%emt 0:04:14]} Bxc6 {[%emt 0:02:12]} 11. O-O {[%emt 0:00:19]} Be7 {[%emt 0:01:52]} 12. a4 {[%emt 0:10:15]} a6 {[%emt 0:05:44]} 13. Qd3 {[%emt 0:00:57]} Rc8 {[%emt 0:07:46]} 14. Ne2 {[%emt 0:07:10]} Qb4 {[%emt 0:04:13]} 15. b3 {[%emt 0:05:11]} Qb6 {[%emt 0:04:54]} 16. Ba3 {[%emt 0:03:04]} Bxa3 {[%emt 0:04:11]} 17. Rxa3 {[%emt 0:00:06]} a5 {[%emt 0:02:35]} 18. Ng3 {[%emt 0:01:29]} Nxg3 {[%emt 0:02:30]} 19. hxg3 {[%emt 0:02:52]} Bd7 {[%emt 0:01:52]} 20. Raa1 {[%emt 0:02:49]} h6 {[%emt 0:05:30]} 21. Rfc1 {[%emt 0:02:43]} O-O {[%emt 0:00:53]} 22. g4 {[%emt 0:00:16]} g6 {[%emt 0:08:47]} 23. g5 {[%emt 0:01:29]} h5 {[%emt 0:01:16]} 24. g4 {[%emt 0:00:15]} h4 {[%emt 0:01:58]} 25. Nxh4 {[%emt 0:04:07]} Kg7 {[%emt 0:01:02]} 26. Qe3 {[%emt 0:02:34]} Rxc1+ {[%emt 0:02:12]} 27. Rxc1 {[%emt 0:00:08]} Rc8 {[%emt 0:00:47]} 28. Rxc8 {[%emt 0:01:16]} Bxc8 {[%emt 0:00:06]} 29. Qf4 {[%emt 0:01:34]} Qxb3 {[%emt 0:06:30]} 30. Qf6+ {[%emt 0:00:36]} Kg8 {[%emt 0:00:03]} 31. Qd8+ {[%emt 0:05:49]} Kg7 {[%emt 0:00:34]} 32. Qf6+ {[%emt 0:01:01]} Kg8 {[%emt 0:00:11]} 33. Qd8+ {[%emt 0:00:03]} Kg7 {[%emt 0:00:11]} 34. Qf6+ {[%emt 0:00:40]} 1/2-1/2

[Event "XX Gran Hotel Bali-B 2023"]
[Site "Benidorm"]
[Date "2023.12.03"]
[Round "3.11"]
[White "Lloret Climent, Miguel"]
[Black "Oualili, Abdelali"]
[Result "1-0"]
[ECO "B10"]
[WhiteElo "1954"]
[BlackElo "1801"]
[Annotator "NA RC"]
[PlyCount "127"]
[EventDate "2023.12.02"]
[EventType "swiss"]
[EventCountry "ESP"]
[SourceTitle "playchess.com"]
[Source "ChessBase"]
[SourceQuality "1"]
[TimeControl "5400+30"]

1. c4 {[%emt 0:00:04]} c6 {[%emt 0:02:19]} 2. e4 {[%emt 0:04:09]} d5 {[%emt 0:01:44]} 3. cxd5 {[%emt 0:00:57]} cxd5 {[%emt 0:00:12]} 4. exd5 {[%emt 0:02:14]} Nf6 {[%emt 0:02:04]} 5. Nc3 {[%emt 0:01:09]} g6 {[%emt 0:00:13]} 6. Bc4 {[%emt 0:07:29]} Bg7 {[%emt 0:00:46]} 7. Nf3 {[%emt 0:01:07]} O-O {[%emt 0:00:18]} 8. d3 {[%emt 0:01:11]} Nbd7 {[%emt 0:00:26]} 9. Be3 {[%emt 0:01:35]} Nb6 {[%emt 0:07:05]} 10. Bxb6 {[%emt 0:00:37]} Qxb6 {[%emt 0:01:05]} 11. Qb3 {[%emt 0:00:46]} Qc7 {[%emt 0:07:58]} 12. h3 {[%emt 0:05:30]} a6 {[%emt 0:09:06]} 13. a4 {[%emt 0:02:26]} b6 {[%emt 0:01:20]} 14. O-O {[%emt 0:02:16]} Rb8 {[%emt 0:00:50]} 15. d4 {[%emt 0:09:54]} Ne8 {[%emt 0:01:49]} 16. Rac1 {[%emt 0:01:40]} Nd6 {[%emt 0:00:13]} 17. Bd3 {[%emt 0:00:50]} Nf5 {[%emt 0:08:27]} 18. Ne2 {[%emt 0:04:16]} Qa7 {[%emt 0:02:44]} 19. Ne5 {[%emt 0:01:28]} Rb7 {[%emt 0:05:09]} 20. Nc6 {[%emt 0:02:32]} Qa8 {[%emt 0:00:16]} 21. Bxf5 {[%emt 0:06:46]} Bxf5 {[%emt 0:01:24]} 22. Ng3 {[%emt 0:00:10]} Bc8 {[%emt 0:03:31]} 23. Rfe1 {[%emt 0:01:47]} e6 {[%emt 0:02:12]} 24. d6 {[%emt 0:03:49]} b5 {[%emt 0:02:40]} 25. a5 {[%emt 0:01:10]} Rd7 {[%emt 0:02:46]} 26. Ne7+ {[%emt 0:16:49]} Kh8 {[%emt 0:00:10]} 27. Nxc8 {[%emt 0:04:46]} Rxc8 {[%emt 0:00:10]} 28. Rxc8+ {[%emt 0:01:37]} Qxc8 {[%emt 0:00:08]} 29. Qb4 {[%emt 0:05:53]} Qc6 {[%emt 0:04:22]} 30. Ne4 {[%emt 0:01:10]} f5 {[%emt 0:00:26]} 31. Ng5 {[%emt 0:01:14]} Bf8 {[%emt 0:09:17]} 32. Nxe6 {[%emt 0:06:39]} Bxd6 {[%emt 0:01:04]} 33. Qd2 {[%emt 0:00:32]} Qd5 {[%emt 0:04:12]} 34. Qc3 {[%emt 0:01:18]} Qc4 {[%emt 0:03:34]} 35. Qxc4 {[%emt 0:00:32]} bxc4 {[%emt 0:00:01]} 36. Rc1 {[%emt 0:00:18]} Kg8 {[%emt 0:00:55]} 37. Rxc4 {[%emt 0:00:16]} Kf7 {[%emt 0:00:26]} 38. Nc5 {[%emt 0:01:00]} Re7 {[%emt 0:00:15]} 39. Kf1 {[%emt 0:00:15]} Ra7 {[%emt 0:02:34]} 40. Ke2 {[%emt 0:00:22]} Ke7 {[%emt 0:00:24]} 41. Kd3 {[%emt 0:00:13]} Bc7 {[%emt 0:00:20]} 42. b4 {[%emt 0:00:35]} Kd6 {[%emt 0:00:12]} 43. Na4 {[%emt 0:00:57]} Rb7 {[%emt 0:00:18]} 44. Nc5 {[%emt 0:00:36]} Ra7 {[%emt 0:00:14]} 45. Kc3 {[%emt 0:00:29]} Bd8 {[%emt 0:00:17]} 46. Nd3 {[%emt 0:00:52]} Bh4 {[%emt 0:01:48]} 47. Rc5 {[%emt 0:00:30]} Ra8 {[%emt 0:01:29]} 48. Kc4 {[%emt 0:00:25]} Re8 {[%emt 0:00:47]} 49. Rd5+ {[%emt 0:00:27]} Kc6 {[%emt 0:00:36]} 50. Ne5+ {[%emt 0:00:22]} Kb7 {[%emt 0:00:40]} 51. g3 {[%emt 0:00:40]} Bf6 {[%emt 0:00:49]} 52. f4 {[%emt 0:00:20]} Rc8+ {[%emt 0:00:26]} 53. Rc5 {[%emt 0:00:27]} Rd8 {[%emt 0:00:12]} 54. d5 {[%emt 0:00:17]} g5 {[%emt 0:00:42]} 55. Rc6 {[%emt 0:00:20]} Rc8 {[%emt 0:01:17]} 56. Rxc8 {[%emt 0:00:20]} Kxc8 {[%emt 0:00:01]} 57. Kc5 {[%emt 0:00:13]} Kc7 {[%emt 0:00:42]} 58. d6+ {[%emt 0:00:23]} Kb7 {[%emt 0:00:10]} 59. Kd5 {[%emt 0:00:22]} gxf4 {[%emt 0:00:23]} 60. gxf4 {[%emt 0:00:11]} Bh4 {[%emt 0:00:07]} 61. Ke6 {[%emt 0:00:33]} Be1 {[%emt 0:00:20]} 62. d7 {[%emt 0:00:21]} Kc7 {[%emt 0:00:15]} 63. Nc6 {[%emt 0:00:37]} Bh4 {[%emt 0:00:18]} 64. d8=Q+ {[%emt 0:00:12]} 1-0